[Event "Titled Tuesday Blitz October 5 2021"]
[White "Gaehwiler, Gabriel"]
[Black "Tabatabaei, M. Amin"]
[WhiteFideId "1314530"]
[BlackFideId "12521213"]
[WhiteElo "2320"]
[BlackElo "2555"]
[Result "1/2-1/2"]
[Round "03"]
[TimeControl "180+1"]
[Date "2021.10.05"]
[WhiteClock "0:00:16"]
[BlackClock "0:00:08"]

1. d4 {[%clk 0:03:00]}  Nf6 {[%clk 0:02:55]} 2. c4 {[%clk 0:02:59]}  b6 {[%clk 0:02:55]} 3. g3 {[%clk 0:02:59]}  Bb7 {[%clk 0:02:55]} 4. Nf3 {[%clk 0:02:59]}  g6 {[%clk 0:02:52]} 5. Bg2 {[%clk 0:02:59]}  Bg7 {[%clk 0:02:53]} 6. O-O {[%clk 0:03:00]}  O-O {[%clk 0:02:54]} 7. Nc3 {[%clk 0:03:00]}  Ne4 {[%clk 0:02:54]} 8. Bd2 {[%clk 0:02:58]}  Nxd2 {[%clk 0:02:52]} 9. Qxd2 {[%clk 0:02:59]}  d6 {[%clk 0:02:43]} 10. e4 {[%clk 0:02:55]}  e6 {[%clk 0:02:42]} 11. Rfe1 {[%clk 0:02:53]}  Nd7 {[%clk 0:02:42]} 12. Rad1 {[%clk 0:02:52]}  Qe7 {[%clk 0:02:42]} 13. h4 {[%clk 0:02:52]}  h6 {[%clk 0:02:40]} 14. e5 {[%clk 0:02:39]}  dxe5 {[%clk 0:02:31]} 15. Nxe5 {[%clk 0:02:37]}  Bxg2 {[%clk 0:02:26]} 16. Kxg2 {[%clk 0:02:29]}  Nxe5 {[%clk 0:02:15]} 17. dxe5 {[%clk 0:02:30]}  Qc5 {[%clk 0:02:07]} 18. Qf4 {[%clk 0:02:24]}  Rad8 {[%clk 0:02:03]} 19. b3 {[%clk 0:01:31]}  Rxd1 {[%clk 0:01:51]} 20. Rxd1 {[%clk 0:01:27]}  Qxe5 {[%clk 0:01:33]} 21. Qxe5 {[%clk 0:01:12]}  Bxe5 {[%clk 0:01:34]} 22. Nb5 {[%clk 0:01:13]}  a6 {[%clk 0:01:24]} 23. Na7 {[%clk 0:01:11]}  Bd6 {[%clk 0:01:21]} 24. Nc6 {[%clk 0:01:11]}  f5 {[%clk 0:01:19]} 25. b4 {[%clk 0:01:05]}  Kg7 {[%clk 0:01:11]} 26. a4 {[%clk 0:00:42]}  Kf6 {[%clk 0:01:06]} 27. a5 {[%clk 0:00:42]}  bxa5 {[%clk 0:00:35]} 28. c5 {[%clk 0:00:42]}  Be5 {[%clk 0:00:36]} 29. Nxa5 {[%clk 0:00:38]}  g5 {[%clk 0:00:29]} 30. hxg5+ {[%clk 0:00:38]}  hxg5 {[%clk 0:00:30]} 31. Nc6 {[%clk 0:00:38]}  g4 {[%clk 0:00:30]} 32. Rd7 {[%clk 0:00:32]}  Rc8 {[%clk 0:00:27]} 33. Rd8 {[%clk 0:00:25]}  Rxd8 {[%clk 0:00:25]} 34. Nxd8 {[%clk 0:00:26]}  Bc3 {[%clk 0:00:24]} 35. Nc6 {[%clk 0:00:25]}  e5 {[%clk 0:00:22]} 36. Nb8 {[%clk 0:00:13]}  Bxb4 {[%clk 0:00:20]} 37. Nxa6 {[%clk 0:00:14]}  Ba5 {[%clk 0:00:20]} 38. Nb8 {[%clk 0:00:14]}  Ke6 {[%clk 0:00:18]} 39. c6 {[%clk 0:00:14]}  Kd6 {[%clk 0:00:14]} 40. Nd7 {[%clk 0:00:15]}  e4 {[%clk 0:00:11]} 41. Nf6 {[%clk 0:00:10]}  Kxc6 {[%clk 0:00:10]} 42. Ne8 {[%clk 0:00:08]}  Kd7 {[%clk 0:00:10]} 43. Ng7 {[%clk 0:00:08]}  Bd2 {[%clk 0:00:04]} 44. Nxf5 {[%clk 0:00:08]}  Ke6 {[%clk 0:00:04]} 45. Nd4+ {[%clk 0:00:06]}  Kd5 {[%clk 0:00:04]} 46. Nb3 {[%clk 0:00:05]}  Bg5 {[%clk 0:00:04]} 47. Kf1 {[%clk 0:00:06]}  e3 {[%clk 0:00:04]} 48. fxe3 {[%clk 0:00:06]}  Bxe3 {[%clk 0:00:05]} 49. Ke2 {[%clk 0:00:06]}  Bd4 {[%clk 0:00:05]} 50. Na5 {[%clk 0:00:07]}  c5 {[%clk 0:00:03]} 51. Kd3 {[%clk 0:00:07]}  Be5 {[%clk 0:00:03]} 52. Nc4 {[%clk 0:00:05]}  Bd4 {[%clk 0:00:04]} 53. Nb6+ {[%clk 0:00:04]}  Kc6 {[%clk 0:00:05]} 54. Nc4 {[%clk 0:00:05]}  Kb5 {[%clk 0:00:04]} 55. Nd6+ {[%clk 0:00:05]}  Kb4 {[%clk 0:00:04]} 56. Nf5 {[%clk 0:00:06]}  Bf2 {[%clk 0:00:04]} 57. Ke2 {[%clk 0:00:06]}  Bd4 {[%clk 0:00:04]} 58. Kd3 {[%clk 0:00:07]}  Be5 {[%clk 0:00:04]} 59. Ke4 {[%clk 0:00:06]}  Bc7 {[%clk 0:00:02]} 60. Ne3 {[%clk 0:00:07]}  Bxg3 {[%clk 0:00:02]} 61. Nxg4 {[%clk 0:00:07]}  Bd6 {[%clk 0:00:01]} 62. Kd3 {[%clk 0:00:07]}  c4+ {[%clk 0:00:01]} 63. Kc2 {[%clk 0:00:08]}  Bf4 {[%clk 0:00:01]} 64. Nf2 {[%clk 0:00:08]}  Kc5 {[%clk 0:00:02]} 65. Ne4+ {[%clk 0:00:08]}  Kd4 {[%clk 0:00:02]} 66. Nf2 {[%clk 0:00:09]}  Be3 {[%clk 0:00:03]} 67. Nd1 {[%clk 0:00:09]}  Bg1 {[%clk 0:00:02]} 68. Nc3 {[%clk 0:00:09]}  Bh2 {[%clk 0:00:02]} 69. Ne2+ {[%clk 0:00:09]}  Ke3 {[%clk 0:00:03]} 70. Nc3 {[%clk 0:00:10]}  Be5 {[%clk 0:00:03]} 71. Nd5+ {[%clk 0:00:10]}  Kd4 {[%clk 0:00:04]} 72. Nb4 {[%clk 0:00:10]}  Kc5 {[%clk 0:00:04]} 73. Na2 {[%clk 0:00:10]}  Bd4 {[%clk 0:00:03]} 74. Nc1 {[%clk 0:00:10]}  Be3 {[%clk 0:00:03]} 75. Ne2 {[%clk 0:00:11]}  Kb5 {[%clk 0:00:04]} 76. Nc3+ {[%clk 0:00:11]}  Kb4 {[%clk 0:00:04]} 77. Ne2 {[%clk 0:00:12]}  Bg5 {[%clk 0:00:04]} 78. Nc3 {[%clk 0:00:12]}  Bd8 {[%clk 0:00:04]} 79. Nd5+ {[%clk 0:00:12]}  Kc5 {[%clk 0:00:05]} 80. Nc3 {[%clk 0:00:13]}  Ba5 {[%clk 0:00:05]} 81. Ne2 {[%clk 0:00:13]}  Bb4 {[%clk 0:00:05]} 82. Ng3 {[%clk 0:00:13]}  Kd4 {[%clk 0:00:05]} 83. Ne2+ {[%clk 0:00:13]}  Ke4 {[%clk 0:00:06]} 84. Ng3+ {[%clk 0:00:14]}  Ke3 {[%clk 0:00:06]} 85. Nf5+ {[%clk 0:00:14]}  Kf3 {[%clk 0:00:06]} 86. Nd4+ {[%clk 0:00:14]}  Ke4 {[%clk 0:00:07]} 87. Nc6 {[%clk 0:00:15]}  Be1 {[%clk 0:00:06]} 88. Na7 {[%clk 0:00:15]}  Kd5 {[%clk 0:00:06]} 89. Nb5 {[%clk 0:00:15]}  Kc5 {[%clk 0:00:06]} 90. Na3 {[%clk 0:00:15]}  c3 {[%clk 0:00:07]} 91. Nb1 {[%clk 0:00:16]}  Kd4 {[%clk 0:00:08]} 92. Nxc3 {[%clk 0:00:16]} 1/2-1/2


[Site "https://www.chess.com"]

[Event "Titled Tuesday Blitz October 5 2021"]
[White "Goncalves, Ivan Mesquita V"]
[Black "Navalgund, Niranjan"]
[WhiteFideId "2114224"]
[BlackFideId "5030854"]
[WhiteElo "2299"]
[BlackElo "2290"]
[Result "1-0"]
[Round "03"]
[TimeControl "180+1"]
[Date "2021.10.05"]
[WhiteClock "0:00:09"]
[BlackClock "0:00:08"]

1. d4 {[%clk 0:03:00]}  Nf6 {[%clk 0:02:59]} 2. Nf3 {[%clk 0:03:01]}  Ne4 {[%clk 0:02:56]} 3. Bf4 {[%clk 0:02:53]}  g6 {[%clk 0:02:54]} 4. Nbd2 {[%clk 0:02:49]}  d5 {[%clk 0:02:44]} 5. e3 {[%clk 0:02:47]}  Nd7 {[%clk 0:02:40]} 6. c4 {[%clk 0:02:45]}  c6 {[%clk 0:02:29]} 7. Bd3 {[%clk 0:02:42]}  Ndf6 {[%clk 0:02:29]} 8. h3 {[%clk 0:02:40]}  Bg7 {[%clk 0:02:28]} 9. O-O {[%clk 0:02:40]}  O-O {[%clk 0:02:17]} 10. Qc2 {[%clk 0:02:34]}  Nxd2 {[%clk 0:02:09]} 11. Nxd2 {[%clk 0:02:31]}  dxc4 {[%clk 0:02:07]} 12. Nxc4 {[%clk 0:02:30]}  Nd5 {[%clk 0:02:08]} 13. Be5 {[%clk 0:02:26]}  Nb4 {[%clk 0:02:09]} 14. Qd2 {[%clk 0:02:20]}  Nxd3 {[%clk 0:02:09]} 15. Bxg7 {[%clk 0:02:15]}  Kxg7 {[%clk 0:02:10]} 16. Qxd3 {[%clk 0:02:15]}  Be6 {[%clk 0:01:54]} 17. Ne5 {[%clk 0:02:12]}  f6 {[%clk 0:01:49]} 18. Nf3 {[%clk 0:02:09]}  c5 {[%clk 0:01:28]} 19. Qb5 {[%clk 0:02:08]}  cxd4 {[%clk 0:01:28]} 20. Nxd4 {[%clk 0:02:08]}  Bf7 {[%clk 0:01:14]} 21. Qxb7 {[%clk 0:02:02]}  Rb8 {[%clk 0:01:15]} 22. Qxa7 {[%clk 0:02:02]}  Rxb2 {[%clk 0:01:14]} 23. a4 {[%clk 0:01:54]}  Qd6 {[%clk 0:01:10]} 24. Rfd1 {[%clk 0:01:49]}  Bd5 {[%clk 0:01:06]} 25. Nb5 {[%clk 0:01:31]}  Qe5 {[%clk 0:00:56]} 26. Qc5 {[%clk 0:01:01]}  e6 {[%clk 0:00:31]} 27. Qd4 {[%clk 0:00:52]}  Qg5 {[%clk 0:00:25]} 28. e4 {[%clk 0:00:47]}  Bxe4 {[%clk 0:00:12]} 29. Qxe4 {[%clk 0:00:45]}  Rf7 {[%clk 0:00:12]} 30. Qxe6 {[%clk 0:00:40]}  Qf4 {[%clk 0:00:12]} 31. Qe3 {[%clk 0:00:38]}  Qb4 {[%clk 0:00:12]} 32. Qc3 {[%clk 0:00:33]}  Rb7 {[%clk 0:00:09]} 33. Qxb4 {[%clk 0:00:30]}  Rxb4 {[%clk 0:00:10]} 34. Nd6 {[%clk 0:00:28]}  Ra7 {[%clk 0:00:11]} 35. a5 {[%clk 0:00:27]}  f5 {[%clk 0:00:09]} 36. Rd5 {[%clk 0:00:20]}  Ra6 {[%clk 0:00:09]} 37. Rb5 {[%clk 0:00:18]}  Rd4 {[%clk 0:00:09]} 38. Nb7 {[%clk 0:00:17]}  Rd2 {[%clk 0:00:08]} 39. Nc5 {[%clk 0:00:17]}  Ra8 {[%clk 0:00:07]} 40. a6 {[%clk 0:00:16]}  Re8 {[%clk 0:00:08]} 41. a7 {[%clk 0:00:13]}  Ree2 {[%clk 0:00:08]} 42. a8=Q {[%clk 0:00:13]}  Rxf2 {[%clk 0:00:08]} 43. Ne6+ {[%clk 0:00:12]}  Kh6 {[%clk 0:00:08]} 44. Rb4 {[%clk 0:00:09]}  Kh5 {[%clk 0:00:08]} 45. Qc6 {[%clk 0:00:07]}  Rfe2 {[%clk 0:00:08]} 46. Nf4+ {[%clk 0:00:07]}  Kg5 {[%clk 0:00:08]} 47. Nxe2 {[%clk 0:00:08]}  Rxe2 {[%clk 0:00:09]} 48. Qd6 {[%clk 0:00:08]}  Re4 {[%clk 0:00:08]} 49. Rxe4 {[%clk 0:00:08]}  fxe4 {[%clk 0:00:09]} 50. Ra5+ {[%clk 0:00:08]}  Kh6 {[%clk 0:00:08]} 51. Qf4+ {[%clk 0:00:08]}  Kg7 {[%clk 0:00:09]} 52. Ra7+ {[%clk 0:00:08]}  Kg8 {[%clk 0:00:08]} 53. Qb8# {[%clk 0:00:09]} 1-0


[Site "https://www.chess.com"]

[Event "Titled Tuesday Blitz October 5 2021"]
[White "Gorin, Leonid"]
[Black "Nesterov, Arseniy"]
[WhiteFideId "4131991"]
[BlackFideId "24198455"]
[WhiteElo "2363"]
[BlackElo "2494"]
[Result "0-1"]
[Round "03"]
[TimeControl "180+1"]
[Date "2021.10.05"]
[WhiteClock "0:00:47"]
[BlackClock "0:00:05"]

1. e4 {[%clk 0:02:59]}  e5 {[%clk 0:02:58]} 2. Nf3 {[%clk 0:02:59]}  Nc6 {[%clk 0:02:56]} 3. Bb5 {[%clk 0:02:59]}  Nge7 {[%clk 0:02:57]} 4. d4 {[%clk 0:02:58]}  exd4 {[%clk 0:02:56]} 5. Nxd4 {[%clk 0:02:58]}  Nxd4 {[%clk 0:02:47]} 6. Qxd4 {[%clk 0:02:57]}  Nc6 {[%clk 0:02:48]} 7. Qe3 {[%clk 0:02:53]}  g6 {[%clk 0:02:40]} 8. Bd2 {[%clk 0:02:42]}  Bg7 {[%clk 0:02:37]} 9. Bc3 {[%clk 0:02:42]}  O-O {[%clk 0:02:37]} 10. Bxg7 {[%clk 0:02:41]}  Kxg7 {[%clk 0:02:38]} 11. Nc3 {[%clk 0:02:41]}  d6 {[%clk 0:02:36]} 12. Bxc6 {[%clk 0:02:40]}  bxc6 {[%clk 0:02:36]} 13. O-O-O {[%clk 0:02:40]}  Qf6 {[%clk 0:02:26]} 14. f4 {[%clk 0:02:39]}  Re8 {[%clk 0:02:26]} 15. Rhe1 {[%clk 0:02:38]}  Be6 {[%clk 0:02:13]} 16. e5 {[%clk 0:02:28]}  dxe5 {[%clk 0:02:12]} 17. Qxe5 {[%clk 0:02:27]}  Bg4 {[%clk 0:02:04]} 18. Qxf6+ {[%clk 0:02:21]}  Kxf6 {[%clk 0:02:05]} 19. Rxe8 {[%clk 0:02:19]}  Rxe8 {[%clk 0:02:06]} 20. Rf1 {[%clk 0:02:14]}  h5 {[%clk 0:01:51]} 21. Kd2 {[%clk 0:02:07]}  Rd8+ {[%clk 0:01:41]} 22. Ke3 {[%clk 0:02:05]}  Bf5 {[%clk 0:01:30]} 23. Rf2 {[%clk 0:02:03]}  Re8+ {[%clk 0:01:26]} 24. Kd4 {[%clk 0:02:02]}  Re1 {[%clk 0:01:06]} 25. Kc5 {[%clk 0:01:58]}  Rh1 {[%clk 0:01:06]} 26. h3 {[%clk 0:01:53]}  Rh2 {[%clk 0:00:53]} 27. Re2 {[%clk 0:01:49]}  Bd7 {[%clk 0:00:53]} 28. Ne4+ {[%clk 0:01:42]}  Kf5 {[%clk 0:00:46]} 29. g4+ {[%clk 0:01:38]}  hxg4 {[%clk 0:00:42]} 30. hxg4+ {[%clk 0:01:38]}  Kxf4 {[%clk 0:00:42]} 31. Rxh2 {[%clk 0:01:37]}  Kxe4 {[%clk 0:00:43]} 32. Rh7 {[%clk 0:01:34]}  Be6 {[%clk 0:00:24]} 33. Kxc6 {[%clk 0:01:30]}  Kf4 {[%clk 0:00:22]} 34. Kxc7 {[%clk 0:01:30]}  Kxg4 {[%clk 0:00:22]} 35. Kd6 {[%clk 0:01:30]}  Bxa2 {[%clk 0:00:07]} 36. b3 {[%clk 0:01:27]}  Bb1 {[%clk 0:00:07]} 37. c4 {[%clk 0:01:26]}  f5 {[%clk 0:00:06]} 38. c5 {[%clk 0:01:25]}  f4 {[%clk 0:00:06]} 39. c6 {[%clk 0:01:24]}  f3 {[%clk 0:00:06]} 40. Rf7 {[%clk 0:01:23]}  Bf5 {[%clk 0:00:07]} 41. c7 {[%clk 0:01:20]}  f2 {[%clk 0:00:07]} 42. Rxf5 {[%clk 0:01:19]}  gxf5 {[%clk 0:00:07]} 43. c8=Q {[%clk 0:01:19]}  f1=Q {[%clk 0:00:08]} 44. Qg8+ {[%clk 0:01:18]}  Kf4 {[%clk 0:00:06]} 45. Qd5 {[%clk 0:01:12]}  Qa6+ {[%clk 0:00:06]} 46. Kd7 {[%clk 0:01:11]}  Qb6 {[%clk 0:00:05]} 47. b4 {[%clk 0:01:10]}  Qxb4 {[%clk 0:00:04]} 48. Ke6 {[%clk 0:01:07]}  Qe4+ {[%clk 0:00:04]} 49. Qxe4+ {[%clk 0:00:47]}  fxe4 {[%clk 0:00:05]} 0-1


[Site "https://www.chess.com"]

[Event "Titled Tuesday Blitz October 5 2021"]
[White "Havanecz, Bianka"]
[Black "Harshavardhan G B"]
[WhiteFideId "704814"]
[BlackFideId "25059009"]
[WhiteElo "2433"]
[BlackElo "1825"]
[Result "0-1"]
[Round "03"]
[TimeControl "180+1"]
[Date "2021.10.05"]
[WhiteClock "0:00:34"]
[BlackClock "0:02:11"]

1. d4 {[%clk 0:03:00]}  d5 {[%clk 0:02:46]} 2. c4 {[%clk 0:02:47]}  dxc4 {[%clk 0:02:47]} 3. e3 {[%clk 0:02:46]}  c5 {[%clk 0:02:46]} 4. Bxc4 {[%clk 0:02:43]}  Nf6 {[%clk 0:02:45]} 5. Nf3 {[%clk 0:02:37]}  e6 {[%clk 0:02:45]} 6. O-O {[%clk 0:02:36]}  a6 {[%clk 0:02:44]} 7. Qe2 {[%clk 0:02:31]}  b5 {[%clk 0:02:44]} 8. Bd3 {[%clk 0:02:30]}  Bb7 {[%clk 0:02:44]} 9. Rd1 {[%clk 0:02:24]}  Qc7 {[%clk 0:02:42]} 10. Nc3 {[%clk 0:02:18]}  Nbd7 {[%clk 0:02:40]} 11. e4 {[%clk 0:02:07]}  cxd4 {[%clk 0:02:38]} 12. Nxd4 {[%clk 0:02:06]}  Bc5 {[%clk 0:02:38]} 13. Nb3 {[%clk 0:02:00]}  Ba7 {[%clk 0:02:37]} 14. Bg5 {[%clk 0:01:53]}  Ne5 {[%clk 0:02:34]} 15. Bc2 {[%clk 0:01:47]}  O-O {[%clk 0:02:33]} 16. Rac1 {[%clk 0:01:24]}  Neg4 {[%clk 0:02:31]} 17. g3 {[%clk 0:00:59]}  Nxf2 {[%clk 0:02:26]} 18. Bxf6 {[%clk 0:00:52]}  Nxd1+ {[%clk 0:02:17]} 19. Kg2 {[%clk 0:00:40]}  Ne3+ {[%clk 0:02:14]} 20. Kh3 {[%clk 0:00:34]}  gxf6 {[%clk 0:02:11]} 0-1


[Site "https://www.chess.com"]

[Event "Titled Tuesday Blitz October 5 2021"]
[White "Itkis, Boris"]
[Black "Avila Pavas, Santiago"]
[WhiteFideId "1209167"]
[BlackFideId "4437128"]
[WhiteElo "2227"]
[BlackElo "2292"]
[Result "0-1"]
[Round "03"]
[TimeControl "180+1"]
[Date "2021.10.05"]
[WhiteClock "0:00:38"]
[BlackClock "0:01:35"]

1. c4 {[%clk 0:02:28]}  e5 {[%clk 0:02:58]} 2. Nc3 {[%clk 0:02:27]}  Nc6 {[%clk 0:02:58]} 3. Nf3 {[%clk 0:02:27]}  Nf6 {[%clk 0:02:58]} 4. e4 {[%clk 0:02:26]}  Bb4 {[%clk 0:02:58]} 5. d3 {[%clk 0:02:23]}  Bxc3+ {[%clk 0:02:54]} 6. bxc3 {[%clk 0:02:23]}  d6 {[%clk 0:02:53]} 7. g3 {[%clk 0:02:23]}  O-O {[%clk 0:02:52]} 8. Bg2 {[%clk 0:02:23]}  Nd7 {[%clk 0:02:49]} 9. O-O {[%clk 0:02:23]}  Nc5 {[%clk 0:02:50]} 10. Nh4 {[%clk 0:02:21]}  a6 {[%clk 0:02:13]} 11. Be3 {[%clk 0:02:20]}  b5 {[%clk 0:02:11]} 12. d4 {[%clk 0:02:09]}  Na4 {[%clk 0:02:10]} 13. Qb3 {[%clk 0:01:58]}  Na5 {[%clk 0:02:10]} 14. Qb4 {[%clk 0:01:52]}  Nxc4 {[%clk 0:02:10]} 15. Rae1 {[%clk 0:01:40]}  c5 {[%clk 0:02:00]} 16. dxc5 {[%clk 0:01:36]}  Nxe3 {[%clk 0:02:00]} 17. Rxe3 {[%clk 0:01:33]}  dxc5 {[%clk 0:02:00]} 18. Qb1 {[%clk 0:01:33]}  Be6 {[%clk 0:01:55]} 19. Nf5 {[%clk 0:01:28]}  Qd2 {[%clk 0:01:50]} 20. Rd1 {[%clk 0:00:55]}  Qxa2 {[%clk 0:01:49]} 21. Qc1 {[%clk 0:00:50]}  Qb2 {[%clk 0:01:47]} 22. Red3 {[%clk 0:00:44]}  Qxc1 {[%clk 0:01:45]} 23. Rxc1 {[%clk 0:00:45]}  Rfd8 {[%clk 0:01:45]} 24. Rcd1 {[%clk 0:00:44]}  Rxd3 {[%clk 0:01:40]} 25. Rxd3 {[%clk 0:00:45]}  Nb2 {[%clk 0:01:39]} 26. Rd6 {[%clk 0:00:44]}  a5 {[%clk 0:01:40]} 27. Bf1 {[%clk 0:00:38]}  a4 {[%clk 0:01:35]} 0-1


[Site "https://www.chess.com"]

[Event "Titled Tuesday Blitz October 5 2021"]
[White "Kamsky, Gata"]
[Black "Bodnaruk, Anastasia"]
[WhiteFideId "2000024"]
[BlackFideId "4181751"]
[WhiteElo "2603"]
[BlackElo "2406"]
[Result "1-0"]
[Round "03"]
[TimeControl "180+1"]
[Date "2021.10.05"]
[WhiteClock "0:00:44"]
[BlackClock "0:00:03"]

1. d4 {[%clk 0:03:00]}  Nf6 {[%clk 0:02:59]} 2. Nf3 {[%clk 0:02:59]}  g6 {[%clk 0:02:59]} 3. c3 {[%clk 0:02:59]}  Bg7 {[%clk 0:02:59]} 4. Bg5 {[%clk 0:02:57]}  O-O {[%clk 0:02:57]} 5. Nbd2 {[%clk 0:02:58]}  d5 {[%clk 0:02:56]} 6. e3 {[%clk 0:02:57]}  b6 {[%clk 0:02:54]} 7. Be2 {[%clk 0:02:56]}  c5 {[%clk 0:02:53]} 8. O-O {[%clk 0:02:57]}  Nc6 {[%clk 0:02:52]} 9. a4 {[%clk 0:02:57]}  Bb7 {[%clk 0:02:44]} 10. Qb3 {[%clk 0:02:56]}  c4 {[%clk 0:02:42]} 11. Qa3 {[%clk 0:02:52]}  Re8 {[%clk 0:02:40]} 12. b3 {[%clk 0:02:51]}  cxb3 {[%clk 0:02:37]} 13. Qxb3 {[%clk 0:02:50]}  Na5 {[%clk 0:02:34]} 14. Qb4 {[%clk 0:02:45]}  Rc8 {[%clk 0:02:32]} 15. Rfc1 {[%clk 0:02:43]}  Ne4 {[%clk 0:02:19]} 16. Nxe4 {[%clk 0:02:33]}  dxe4 {[%clk 0:02:19]} 17. Nd2 {[%clk 0:02:34]}  Qd7 {[%clk 0:01:52]} 18. Nb3 {[%clk 0:02:08]}  Nc6 {[%clk 0:01:42]} 19. Qa3 {[%clk 0:01:55]}  e5 {[%clk 0:01:40]} 20. a5 {[%clk 0:01:50]}  f5 {[%clk 0:01:31]} 21. axb6 {[%clk 0:01:47]}  axb6 {[%clk 0:01:31]} 22. Rd1 {[%clk 0:01:39]}  exd4 {[%clk 0:01:29]} 23. cxd4 {[%clk 0:01:36]}  Ne7 {[%clk 0:01:17]} 24. Bxe7 {[%clk 0:01:30]}  Rxe7 {[%clk 0:01:13]} 25. Qb4 {[%clk 0:01:29]}  f4 {[%clk 0:00:58]} 26. Qxb6 {[%clk 0:01:15]}  Qf5 {[%clk 0:00:43]} 27. Ra5 {[%clk 0:01:09]}  Qf7 {[%clk 0:00:39]} 28. Nc5 {[%clk 0:01:04]}  Bd5 {[%clk 0:00:36]} 29. Qd6 {[%clk 0:00:58]}  Bh6 {[%clk 0:00:28]} 30. Ra3 {[%clk 0:00:49]}  Rc6 {[%clk 0:00:26]} 31. Qd8+ {[%clk 0:00:47]}  Re8 {[%clk 0:00:26]} 32. Qh4 {[%clk 0:00:46]}  g5 {[%clk 0:00:25]} 33. Qh5 {[%clk 0:00:45]}  f3 {[%clk 0:00:20]} 34. Qxf7+ {[%clk 0:00:45]}  Kxf7 {[%clk 0:00:20]} 35. Bb5 {[%clk 0:00:45]}  Rec8 {[%clk 0:00:06]} 36. Bxc6 {[%clk 0:00:45]}  Rxc6 {[%clk 0:00:07]} 37. Ra7+ {[%clk 0:00:45]}  Kg6 {[%clk 0:00:07]} 38. Ra6 {[%clk 0:00:44]}  Bf8 {[%clk 0:00:04]} 39. Rxc6+ {[%clk 0:00:43]}  Bxc6 {[%clk 0:00:04]} 40. d5 {[%clk 0:00:43]}  Bb5 {[%clk 0:00:03]} 41. d6 {[%clk 0:00:44]} 1-0


[Site "https://www.chess.com"]

[Event "Titled Tuesday Blitz October 5 2021"]
[White "Kanyamarala, Trisha"]
[Black "Sanal, Vahap"]
[WhiteFideId "45004722"]
[BlackFideId "6300545"]
[WhiteElo "2038"]
[BlackElo "2492"]
[Result "0-1"]
[Round "03"]
[TimeControl "180+1"]
[Date "2021.10.05"]
[WhiteClock "0:00:47"]
[BlackClock "0:02:19"]

1. d4 {[%clk 0:03:00]}  Nf6 {[%clk 0:02:52]} 2. c4 {[%clk 0:03:00]}  g6 {[%clk 0:02:51]} 3. Nc3 {[%clk 0:02:59]}  Bg7 {[%clk 0:02:52]} 4. e4 {[%clk 0:02:59]}  O-O {[%clk 0:02:53]} 5. Nf3 {[%clk 0:02:59]}  d6 {[%clk 0:02:54]} 6. Be2 {[%clk 0:02:59]}  Nbd7 {[%clk 0:02:53]} 7. O-O {[%clk 0:02:54]}  e5 {[%clk 0:02:54]} 8. d5 {[%clk 0:02:50]}  Nc5 {[%clk 0:02:53]} 9. Qc2 {[%clk 0:02:50]}  a5 {[%clk 0:02:53]} 10. h3 {[%clk 0:02:47]}  Nh5 {[%clk 0:02:51]} 11. Bg5 {[%clk 0:02:40]}  f6 {[%clk 0:02:49]} 12. Be3 {[%clk 0:02:40]}  Nf4 {[%clk 0:02:47]} 13. Bd1 {[%clk 0:02:31]}  f5 {[%clk 0:02:46]} 14. Bxf4 {[%clk 0:02:26]}  exf4 {[%clk 0:02:46]} 15. exf5 {[%clk 0:02:18]}  Bxf5 {[%clk 0:02:46]} 16. Qd2 {[%clk 0:02:18]}  Bd3 {[%clk 0:02:41]} 17. Be2 {[%clk 0:02:18]}  Bf5 {[%clk 0:02:35]} 18. Bd1 {[%clk 0:02:12]}  g5 {[%clk 0:02:34]} 19. Bc2 {[%clk 0:02:06]}  g4 {[%clk 0:02:29]} 20. Bxf5 {[%clk 0:01:40]}  gxf3 {[%clk 0:02:29]} 21. Qc2 {[%clk 0:01:30]}  Qg5 {[%clk 0:02:26]} 22. Bg4 {[%clk 0:01:10]}  fxg2 {[%clk 0:02:24]} 23. Rfe1 {[%clk 0:01:03]}  f3 {[%clk 0:02:24]} 24. Ne4 {[%clk 0:00:59]}  Qg6 {[%clk 0:02:22]} 25. Rac1 {[%clk 0:00:55]}  Rae8 {[%clk 0:02:20]} 26. Qb1 {[%clk 0:00:47]}  Nxe4 {[%clk 0:02:19]} 0-1


[Site "https://www.chess.com"]

[Event "Titled Tuesday Blitz October 5 2021"]
[White "Karttunen, Mika"]
[Black "Timmermans, Mark"]
[WhiteFideId "502081"]
[BlackFideId "1026399"]
[WhiteElo "2343"]
[BlackElo "2460"]
[Result "0-1"]
[Round "03"]
[TimeControl "180+1"]
[Date "2021.10.05"]
[WhiteClock "0:00:08"]
[BlackClock "0:00:51"]

1. d4 {[%clk 0:03:00]}  Nf6 {[%clk 0:02:59]} 2. c4 {[%clk 0:03:00]}  e6 {[%clk 0:03:00]} 3. g3 {[%clk 0:02:59]}  d5 {[%clk 0:02:53]} 4. Nf3 {[%clk 0:02:58]}  Be7 {[%clk 0:02:52]} 5. Bg2 {[%clk 0:02:58]}  O-O {[%clk 0:02:51]} 6. O-O {[%clk 0:02:57]}  dxc4 {[%clk 0:02:50]} 7. Ne5 {[%clk 0:02:55]}  Nc6 {[%clk 0:02:50]} 8. Nxc6 {[%clk 0:02:54]}  bxc6 {[%clk 0:02:51]} 9. Na3 {[%clk 0:02:54]}  Nd5 {[%clk 0:02:43]} 10. Nxc4 {[%clk 0:02:42]}  Bd7 {[%clk 0:02:35]} 11. Ne5 {[%clk 0:02:23]}  Bd6 {[%clk 0:02:26]} 12. Nd3 {[%clk 0:02:17]}  a5 {[%clk 0:02:06]} 13. Bd2 {[%clk 0:02:00]}  a4 {[%clk 0:02:01]} 14. Rc1 {[%clk 0:01:56]}  Qe7 {[%clk 0:01:54]} 15. a3 {[%clk 0:01:40]}  f5 {[%clk 0:01:52]} 16. e4 {[%clk 0:01:28]}  fxe4 {[%clk 0:01:53]} 17. Bxe4 {[%clk 0:01:28]}  Qf6 {[%clk 0:01:52]} 18. Rc4 {[%clk 0:01:17]}  Nb6 {[%clk 0:01:50]} 19. Rc2 {[%clk 0:00:56]}  Qxd4 {[%clk 0:01:49]} 20. Qe2 {[%clk 0:00:57]}  Nd5 {[%clk 0:01:44]} 21. Rfc1 {[%clk 0:00:30]}  Rae8 {[%clk 0:01:38]} 22. Rc4 {[%clk 0:00:28]}  Qf6 {[%clk 0:01:29]} 23. Rxa4 {[%clk 0:00:28]}  e5 {[%clk 0:01:30]} 24. Nc5 {[%clk 0:00:22]}  Bf5 {[%clk 0:01:27]} 25. Bxf5 {[%clk 0:00:21]}  Qxf5 {[%clk 0:01:28]} 26. Ne4 {[%clk 0:00:22]}  Nf6 {[%clk 0:01:25]} 27. Qc4+ {[%clk 0:00:20]}  Kh8 {[%clk 0:01:23]} 28. Be3 {[%clk 0:00:20]}  Nd5 {[%clk 0:01:15]} 29. Qe2 {[%clk 0:00:16]}  Qd7 {[%clk 0:01:04]} 30. Rac4 {[%clk 0:00:16]}  h6 {[%clk 0:01:00]} 31. Rxc6 {[%clk 0:00:15]}  Nf4 {[%clk 0:01:01]} 32. gxf4 {[%clk 0:00:13]}  exf4 {[%clk 0:01:01]} 33. Bd4 {[%clk 0:00:12]}  f3 {[%clk 0:01:00]} 34. Qd3 {[%clk 0:00:11]}  Rxe4 {[%clk 0:00:55]} 35. Qxe4 {[%clk 0:00:09]}  Qh3 {[%clk 0:00:55]} 36. Qg6 {[%clk 0:00:07]}  Bxh2+ {[%clk 0:00:50]} 37. Kh1 {[%clk 0:00:07]}  Bg3+ {[%clk 0:00:51]} 38. Kg1 {[%clk 0:00:08]}  Qg2# {[%clk 0:00:51]} 0-1


[Site "https://www.chess.com"]